bitfinex-derivatives/quotes_ETHF0:USTF0_20250330
["timestamp","ask_amount","ask_price","bid_price","bid_amount"]
[1743355175915,2.447,1801.8,1801.6,3.21613402]
[1743355176103,2.447,1801.8,1801.6,4.32654402]
[1743355176408,3.55735,1801.8,1801.6,4.32655402]
[1743355176709,3.55735,1801.8,1801.6,4.32656402]
[1743355176710,3.55733,1801.8,1801.6,4.32656402]
[1743355176907,5.7722,1802.0,1801.6,4.32656402]
[1743355176908,2.5257,1801.7,1801.6,4.32656402]
[1743355177103,2.5644,1802.0,1801.6,3.21613402]
[1743355177310,2.5257,1801.9,1801.6,3.21613402]
[1743355177500,2.5257,1801.9,1801.8,1.11028]
[1743355177698,2.5257,1801.9,1801.7,1.11033]
[1743355177699,3.63595,1801.9,1801.7,1.11033]
[1743355177903,3.63595,1801.9,1801.6,4.32653402]
[1743355178112,2.5257,1801.8,1801.7,1.11037]
[1743355178301,2.5257,1801.8,1801.6,4.32652402]
[1743355178703,3.63601,1801.8,1801.6,4.32652402]
[1743355179603,1.11037,1801.7,1801.6,3.21613402]
[1743355179804,2.5318,1801.7,1801.6,3.21613402]
[1743355180011,3.64217,1801.7,1801.6,0.00833402]
[1743355180306,2.5318,1801.7,1801.6,0.00833402]
[1743355180506,3.64217,1801.7,1801.6,0.00833402]
[1743355182409,3.64217,1801.7,1801.1,0.5552]
[1743355182410,1.11065,1801.3,1801.1,4.31854]
[1743355182610,5.14258,1801.4,1801.2,1.11064]
[1743355183807,1.11062,1801.3,1801.1,6.77534402]
[1743355184010,3.53392,1801.3,1801.1,6.77534402]
[1743355184408,1.11068,1801.2,1801.1,0.00833402]
[1743355184607,5.94628,1801.2,1801.1,0.00833402]
[1743355186513,7.2398,1801.6,1801.2,1.11063]
[1743355186817,1.11057,1801.4,1801.2,6.24913]
[1743355188118,1.11057,1801.4,1801.3,2.5014]
[1743355189019,1.11068,1801.2,1801.1,3.21613402]
[1743355189719,3.68618,1801.2,1801.1,3.21613402]
[1743355191818,6.89398,1801.2,1801.1,0.00833402]
[1743355192118,9.37088,1801.2,1801.1,0.00833402]
[1743355193720,11.87088,1801.2,1801.1,0.00833402]
[1743355193919,1.11107,1800.6,1800.4,8.2715]
[1743355194122,2.77707,1801.0,1800.4,10.8608]
[1743355194123,4.031,1800.7,1800.4,10.8608]
[1743355194321,2.601,1800.5,1800.4,10.8608]
[1743355194711,2.601,1800.5,1800.4,11.97197]
[1743355196023,3.71211,1800.5,1800.4,10.8608]
[1743355196218,4.03933402,1800.6,1800.5,1.11111]
[1743355196428,4.03933402,1800.6,1800.5,3.66861]
[1743355196624,0.00833402,1800.6,1800.5,3.66861]
[1743355196923,5.72,1801.1,1800.5,2.5575]
[1743355197118,5.14187,1800.9,1800.8,1.11092]
[1743355197320,1.11087,1800.9,1800.7,3.66847]
[1743355197519,1.11087,1800.9,1800.8,4.9997]
[1743355199425,3.68797,1800.9,1800.8,4.9997]
[1743355200226,2.5771,1800.9,1800.8,4.9997]
[1743355200422,4.03933402,1801.0,1800.8,6.11062]
[1743355200628,6.69623402,1801.0,1800.9,2.5382]
[1743355200929,3.77603402,1801.0,1800.9,2.5382]
[1743355201124,0.00833402,1801.0,1800.9,3.64906]
[1743355201420,0.00833402,1801.0,1800.9,2.5382]
[1743355201627,1.11913402,1801.0,1800.9,4.9881]
[1743355202215,0.00833402,1801.0,1800.9,3.64906]
[1743355202414,0.00833402,1801.0,1800.9,6.09896]
[1743355203114,1.11913402,1801.0,1800.9,4.9881]
[1743355203527,0.00833402,1801.0,1800.9,4.9881]
[1743355203723,0.08413791,1801.0,1800.9,4.9881]
[1743355204029,1.19493791,1801.0,1800.9,4.9881]
[1743355204725,0.08413791,1801.0,1800.7,3.2078]
[1743355204923,0.08413791,1801.0,1800.6,1.11102]
[1743355204924,1.11099,1800.7,1800.6,2.4892]
[1743355205232,6.5225,1800.9,1800.6,1.11102]
[1743355205530,3.60347,1800.8,1800.6,2.4892]
[1743355205930,1.18679389,1800.7,1800.6,2.4892]
[1743355206133,3.67929389,1800.7,1800.6,2.4892]
[1743355206327,3.67929389,1800.7,1800.5,3.2078]
[1743355206631,3.60355,1800.6,1800.5,3.2078]
[1743355206832,2.56830389,1800.6,1800.5,4.31891]
[1743355207033,0.07580389,1800.6,1800.5,4.31891]
[1743355207721,0.00833402,1801.0,1800.9,1.11086]
[1743355208124,1.11051,1801.5,1801.3,1.11059]
[1743355208319,1.11052,1801.5,1801.3,1.11058]
[1743355209533,9.0476,1801.7,1801.4,1.11052]
[1743355209534,3.66871,1801.7,1801.4,1.11052]
[1743355209927,4.03,1801.7,1801.5,1.11048]
[1743355210223,1.11038,1801.7,1801.4,1.66571]
[1743355210429,1.11038,1801.7,1801.5,1.11049]
[1743355210731,1.11034,1801.8,1801.5,1.11049]
[1743355211232,1.11038,1801.7,1801.4,1.66572]
[1743355211536,1.11038,1801.7,1801.5,2.5784]
[1743355212126,3.52194,1801.8,1801.5,3.68887]
[1743355212325,3.52194,1801.8,1801.6,1.11043]
[1743355212531,3.52194,1801.8,1801.5,3.68885]
[1743355213426,1.11038,1801.7,1801.5,2.5784]
[1743355213832,1.11038,1801.7,1801.5,3.68887]
[1743355214224,3.52195,1801.8,1801.6,1.11042]
[1743355214532,2.4116,1801.8,1801.7,1.11037]
[1743355215132,2.4116,1801.8,1801.6,1.11038]
[1743355215633,3.52191,1801.8,1801.6,1.11038]
[1743355215829,2.4116,1801.8,1801.6,1.11043]
[1743355216034,3.52191,1801.8,1801.6,1.11038]
[1743355216232,2.4116,1801.8,1801.6,1.11038]
[1743355217030,3.52191,1801.8,1801.6,1.11038]
[1743355217235,3.52191,1801.8,1801.5,6.89665]
[1743355217236,1.11039,1801.7,1801.5,6.89665]
[1743355217436,3.70379,1801.7,1801.5,6.89665]
[1743355217835,1.11043,1801.6,1801.5,5.7862]
[1743355218037,2.5934,1801.6,1801.5,6.89669]
[1743355218636,1.11034,1801.8,1801.6,1.11041]
[1743355218830,1.11031,1801.8,1801.7,2.5112]
[1743355219034,7.73269,1801.9,1801.7,2.5112]
[1743355219326,2.5163,1801.8,1801.7,3.62157]
[1743355219527,2.5163,1801.8,1801.5,5.7862]
[1743355219733,1.11037,1801.7,1801.6,2.551]
[1743355220132,1.11047,1801.6,1801.3,1.11058]
[1743355220332,3.62677,1801.6,1801.4,1.11052]
[1743355220533,3.62677,1801.6,1801.5,2.551]
[1743355220935,2.5163,1801.6,1801.5,3.66149]
[1743355221833,5.7604,1802.0,1801.5,2.551]
[1743355222035,7.55236,1801.9,1801.7,1.11034]
[1743355222237,7.55236,1801.9,1801.8,2.4544]
[1743355223543,1.11037,1801.8,1801.4,3.2078]
[1743355223745,3.52547,1801.7,1801.5,3.56485]
[1743355224436,2.4151,1801.7,1801.5,3.56485]
[1743355224636,3.52547,1801.7,1801.5,3.56485]
[1743355224843,1.11043,1801.6,1801.4,4.31831]
[1743355225037,3.68279,1801.5,1801.4,5.6283]
[1743355225243,2.5723,1801.5,1801.4,6.73885]
[1743355225842,2.5723,1801.5,1801.4,5.6283]
[1743355226043,2.5723,1801.5,1801.4,6.73885]
[1743355226346,1.11057,1801.4,1801.2,6.99605402]
[1743355226646,2.5723,1801.3,1801.2,9.41655402]
[1743355226945,2.5723,1801.3,1801.2,6.99605402]
[1743355227847,2.5723,1801.3,1801.2,4.32681402]
[1743355229738,7.63569,1801.6,1801.3,1.11056]
[1743355229939,2.4279,1801.5,1801.3,1.11056]
[1743355230149,3.53839,1801.5,1801.3,1.11056]
[1743355230537,2.4279,1801.4,1801.3,1.11056]
[1743355230933,5.13639,1801.7,1801.2,6.54799402]
[1743355231139,6.5667,1801.7,1801.4,3.2078]
[1743355231335,2.6366,1801.8,1801.7,1.11037]
[1743355232648,4.026,1801.9,1801.8,1.11031]
[1743355233144,10.40435,1802.1,1801.9,1.11021]
[1743355233450,9.2942,1802.1,1801.9,1.11021]
[1743355233653,7.2338,1802.2,1801.7,2.77593]
[1743355233839,1.10996,1802.4,1802.0,3.2078]
[1743355234044,1.10996,1802.4,1802.2,1.11004]
[1743355234441,2.6414,1802.5,1802.1,2.5332]
[1743355234651,7.59626,1802.6,1802.3,1.10994]
[1743355235340,7.59626,1802.6,1802.2,3.2078]
[1743355235341,7.59626,1802.6,1802.4,1.10993]
[1743355235547,7.59626,1802.6,1802.2,3.2078]
[1743355235754,6.4864,1802.6,1802.3,1.10997]
[1743355235956,7.59627,1802.6,1802.3,1.10997]
[1743355236747,7.59627,1802.6,1802.4,1.10993]
[1743355236748,6.4864,1802.6,1802.4,1.10993]
[1743355236953,4.31757,1802.7,1802.5,1.10985]
[1743355237158,2.6414,1802.8,1802.7,1.10975]
[1743355237651,3.2078,1803.2,1802.7,3.2078]
[1743355237843,4.025,1803.1,1802.9,1.10961]
[1743355238047,1.10953,1803.1,1802.8,2.4479]
[1743355238247,1.10953,1803.1,1802.8,3.55755]
[1743355238848,8.34229,1803.2,1802.9,1.10963]
[1743355239050,7.2328,1803.2,1802.9,2.4479]
[1743355239256,1.10963,1803.0,1802.7,1.10974]
[1743355239458,1.10963,1803.0,1802.8,1.10968]
[1743355239650,1.10952,1803.1,1802.9,1.10961]
[1743355239845,1.10952,1803.1,1802.9,2.4479]
[1743355240054,1.10952,1803.1,1802.9,3.55752]
[1743355240356,1.10952,1803.1,1802.9,2.4479]
[1743355240551,1.10952,1803.1,1802.9,3.55752]
[1743355240858,8.34229,1803.2,1802.9,3.55752]
[1743355241254,5.13449,1803.2,1802.9,3.55752]
[1743355242162,1.10951,1803.1,1802.9,3.55752]
[1743355242368,1.10963,1802.9,1802.6,3.6591]
[1743355242556,7.2328,1803.2,1802.7,5.6176]
[1743355242760,1.10953,1803.1,1802.8,1.10964]
[1743355242960,1.10957,1803.0,1802.9,2.4098]
[1743355243160,1.10954,1803.1,1802.9,2.4098]
[1743355243361,4.025,1803.2,1802.9,3.51941]
[1743355243560,1.10952,1803.1,1802.9,3.51941]
[1743355243767,1.10952,1803.1,1802.9,2.4098]
[1743355244167,4.025,1803.2,1802.9,2.4098]
[1743355244360,1.10957,1803.0,1802.9,2.4098]
[1743355244566,7.2328,1803.2,1802.7,3.2078]
[1743355244756,1.10967,1802.9,1802.7,5.8177]
[1743355244959,1.10969,1802.8,1802.7,5.8177]
[1743355245155,7.2328,1803.2,1802.7,6.92742]
[1743355245363,7.2328,1803.2,1802.7,5.8177]
[1743355245569,10.00647,1803.2,1802.7,5.8177]
[1743355245770,7.2328,1803.2,1802.7,6.92744]
[1743355245969,1.10969,1802.8,1802.7,2.6099]
[1743355246158,1.10966,1802.9,1802.7,3.71965]
[1743355246359,10.00647,1803.2,1802.7,2.6099]
[1743355246671,1.10969,1802.8,1802.7,2.6099]
[1743355246869,10.00647,1803.2,1802.7,3.71965]
[1743355246870,1.10968,1802.9,1802.7,3.71965]
[1743355247069,1.10969,1802.8,1802.7,2.6099]
[1743355247269,1.10967,1802.9,1802.7,2.6099]
[1743355247568,1.10969,1802.8,1802.7,2.6099]
[1743355247967,1.10975,1802.7,1802.6,2.5887]
[1743355249963,3.77095,1802.7,1802.6,2.5887]
[1743355251166,2.6612,1802.7,1802.5,3.2078]
[1743355251371,2.6612,1802.7,1802.6,3.74281]
[1743355253470,1.1097,1802.8,1802.7,1.10975]
[1743355253773,2.6081,1802.8,1802.7,3.71035]
[1743355254168,2.6081,1802.8,1802.3,7.70684]
[1743355254169,2.6081,1802.8,1802.3,4.9319]
[1743355254375,1.11,1802.3,1802.2,2.6006]
[1743355254570,7.2288,1802.6,1802.2,3.71066]
[1743355254872,2.6081,1802.5,1802.4,1.10994]
[1743355255276,7.2288,1802.8,1802.3,3.2078]
[1743355255575,8.33853,1802.8,1802.6,1.10978]
[1743355255970,7.2288,1802.8,1802.7,1.10975]
[1743355256672,9.7154,1802.8,1802.7,1.10975]
[1743355257272,6.5076,1802.8,1802.7,1.10975]
[1743355259472,2.4866,1802.8,1802.7,1.10975]
[1743355264080,5.091,1803.0,1802.9,1.10963]
[1743355264374,5.091,1803.0,1802.8,2.5725]
[1743355264375,2.4923,1803.0,1802.8,2.5725]
[1743355264573,3.2078,1803.4,1803.2,1.10944]
[1743355264574,2.5062,1803.3,1803.2,1.10944]
[1743355264773,5.1071,1803.3,1803.2,1.10944]
[1743355265878,5.1071,1803.3,1803.2,3.57404]
[1743355270178,2.6009,1803.3,1803.2,3.57404]
[1743355272982,8.3087,1803.3,1802.4,3.2078]
[1743355273182,3.2078,1802.9,1802.5,7.7789]
[1743355273376,7.2248,1803.0,1802.6,2.6026]
[1743355273571,2.5262,1802.9,1802.6,2.6026]
[1743355273778,1.10972,1802.8,1802.6,3.71235]
[1743355273978,1.10969,1802.9,1802.7,2.5502]
[1743355274184,1.10969,1802.8,1802.7,2.5502]
[1743355274579,0.00833402,1802.9,1802.5,0.00833402]
[1743355274774,0.00833402,1802.9,1801.7,2.87235701]
[1743355274775,2.7747,1802.5,1801.7,3.64730443]
[1743355274980,1.11012,1802.1,1802.0,2.5502]
[1743355275174,1.11011,1802.2,1802.0,2.5502]
[1743355275380,1.11012,1802.1,1802.0,2.5502]
[1743355275579,1.11012,1802.1,1801.8,1.11028]
[1743355275882,1.11012,1802.1,1802.0,1.11018]
[1743355275883,4.017,1802.1,1802.0,1.11018]
[1743355276581,4.017,1802.3,1802.1,1.1101]
[1743355276786,4.017,1802.3,1802.2,2.5502]
[1743355276982,5.12701,1802.3,1802.2,2.5502]
[1743355277188,5.127,1802.3,1802.2,2.5502]
[1743355277587,4.017,1802.3,1802.2,3.66026]
[1743355277783,4.017,1802.3,1802.2,2.5502]
[1743355278089,5.127,1802.3,1802.2,2.5502]
[1743355278284,4.017,1802.3,1802.2,3.66026]
[1743355278989,5.628,1802.7,1802.2,2.5502]
[1743355279188,4.017,1802.5,1802.2,2.5502]
[1743355279490,4.017,1802.5,1802.4,1.10994]
[1743355280582,4.017,1802.5,1802.2,5.1814]
[1743355280583,5.1269,1802.5,1802.2,5.1814]
[1743355280787,5.1269,1802.5,1802.3,1.10998]
[1743355280985,4.017,1802.5,1802.3,1.10998]
[1743355281183,1.10998,1802.4,1802.2,5.1814]
[1743355281382,7.2248,1802.5,1802.2,1.11004]
[1743355281587,1.10996,1802.4,1802.2,3.67534]
[1743355281894,7.2248,1802.5,1802.0,3.2078]
[1743355282090,1.1101,1802.2,1801.9,6.30711]
[1743355282386,1.11018,1802.1,1801.9,2.5653]
[1743355282588,4.017,1802.2,1801.9,2.5653]
[1743355282589,1.11018,1802.0,1801.9,2.5653]
[1743355283090,1.11016,1802.1,1801.9,3.67554]
[1743355283684,7.56872,1802.2,1801.9,3.67549]
[1743355283892,3.55172,1802.2,1802.0,1.11018]
[1743355284080,4.017,1802.1,1802.0,3.68028]
[1743355284793,3.2078,1802.3,1802.0,2.5701]
[1743355285085,1.10996,1802.4,1802.0,2.5701]
[1743355285086,5.12695,1802.4,1802.2,1.11006]
[1743355285390,5.12695,1802.4,1802.1,5.7611]
[1743355285391,4.017,1802.4,1802.3,1.10999]
[1743355286185,4.017,1802.4,1802.2,6.14622]
[1743355286483,4.017,1802.4,1802.3,1.11]
[1743355287994,2.5161,1802.5,1802.3,1.11]
[1743355288180,4.017,1802.6,1802.4,2.6005]
[1743355288381,7.64293,1802.6,1802.4,3.71042]
[1743355290081,1.1099,1802.5,1802.2,2.4661]
[1743355290286,2.4336,1802.4,1802.3,3.5549]
[1743355291089,2.4336,1802.4,1802.3,6.7627]
[1743355291589,3.54354,1802.4,1802.3,5.6527]
[1743355291790,1.11006,1802.2,1802.1,2.5533]
[1743355291988,1.11006,1802.2,1802.1,4.9982]
[1743355292295,5.12604,1802.3,1802.1,4.9982]
[1743355292595,2.5246,1802.2,1802.1,3.66342]
[1743355293387,4.016,1802.3,1802.2,1.11006]
[1743355293687,3.63454,1802.5,1802.1,5.7611]
[1743355293891,2.5246,1802.5,1802.1,5.7611]
[1743355294097,2.4482,1802.7,1802.3,3.2078]
[1743355294397,10.09855,1802.7,1802.5,1.10983]
[1743355294788,1.10982,1802.6,1802.4,3.64671]
[1743355295087,3.63442,1802.6,1802.4,3.64671]
[1743355295293,2.5246,1802.6,1802.4,3.64671]
[1743355295595,2.5246,1802.6,1802.5,1.10988]
[1743355296486,5.12575,1802.7,1802.4,2.5368]
[1743355296691,7.76555,1802.7,1802.5,3.56643]
[1743355297189,7.76555,1802.7,1802.5,3.56644]
[1743355297190,7.76557,1802.7,1802.5,3.56644]
[1743355297394,6.6558,1802.7,1802.6,1.10981]
[1743355298093,6.6558,1802.7,1802.5,5.6644]
[1743355298287,7.76559,1802.7,1802.5,3.56646]
[1743355298490,2.4893,1802.6,1802.5,3.56646]
[1743355300086,2.4893,1802.6,1802.5,2.4566]
[1743355300087,3.59911,1802.6,1802.5,2.4566]
[1743355300287,2.4893,1802.6,1802.5,3.56648]
[1743355300896,3.59911,1802.6,1802.5,3.56648]
[1743355301084,2.4893,1802.6,1802.5,3.56648]
[1743355302087,2.4893,1802.6,1802.2,0.5552]
[1743355302290,1.11003,1802.3,1802.1,1.11011]
[1743355302589,5.12497,1802.4,1802.2,1.11004]
[1743355302791,4.015,1802.4,1802.0,5.0485]
[1743355302997,4.015,1802.4,1802.1,3.763]
[1743355303197,5.12496,1802.4,1802.2,1.11003]
[1743355304592,2.4563,1802.3,1802.2,1.11003]
[1743355305296,2.4563,1802.3,1802.2,1.11006]
[1743355305497,5.12497,1802.4,1802.2,1.11003]
[1743355306188,5.12497,1802.4,1802.1,3.2078]
[1743355306189,7.58021,1802.5,1802.1,3.2078]
[1743355306390,1.10994,1802.4,1802.2,1.11003]
[1743355306594,3.56624,1802.4,1802.2,1.11003]
[1743355307097,3.56632,1802.3,1802.1,4.31791]
[1743355307298,2.4563,1802.3,1802.1,4.31791]
[1743355307496,2.4563,1802.3,1802.2,1.11006]
[1743355308098,2.4563,1802.3,1802.2,3.71356]
[1743355308796,2.5917,1802.6,1802.2,2.6035]
[1743355309001,5.12377,1802.7,1802.5,1.10988]
[1743355309300,2.4858,1802.7,1802.6,3.71331]
[1743355309694,3.59555,1802.7,1802.6,2.6035]
[1743355310195,2.4858,1802.7,1802.6,3.71331]
[1743355310594,5.12371,1802.8,1802.6,3.71331]
[1743355310793,2.5622,1802.8,1802.7,3.59195]
[1743355311099,2.52293402,1802.9,1802.7,3.59192]
[1743355311100,1.11796402,1802.9,1802.7,3.59192]
[1743355311289,1.11796402,1802.9,1802.8,2.4822]
[1743355312602,3.68016402,1802.9,1802.8,2.4822]
[1743355312898,1.10974,1802.8,1802.5,4.31763]
[1743355313101,1.10975,1802.7,1802.6,2.4822]
[1743355313296,8.63032,1802.8,1802.6,3.59201]
[1743355313495,2.5622,1802.7,1802.6,2.4822]
[1743355314996,2.5622,1802.7,1802.6,3.59201]
[1743355315799,2.5622,1802.7,1802.5,4.31763]
[1743355315800,3.67195,1802.7,1802.5,4.31763]
[1743355315991,3.67195,1802.7,1802.6,2.5248]
[1743355316197,1.10975,1802.7,1802.6,2.5248]
[1743355318406,4.9584,1802.8,1802.6,2.5248]
[1743355318603,7.2198,1802.7,1802.1,4.8731]
[1743355318904,1.11006,1802.2,1802.1,5.6369]
[1743355320002,1.11004,1802.3,1802.1,6.74702]
[1743355320211,1.11006,1802.2,1802.1,5.6369]
[1743355320398,1.11006,1802.2,1802.1,3.2078]
[1743355320594,1.11017,1802.1,1801.9,6.12403]
[1743355321000,1.11015,1802.1,1801.9,6.12403]
[1743355321201,1.11011,1802.2,1801.9,6.12403]
[1743355321407,1.11006,1802.2,1801.9,6.12403]
[1743355321595,1.11006,1802.2,1802.0,1.11018]
[1743355321999,9.2068,1802.4,1802.1,1.11012]
[1743355322205,1.11,1802.3,1802.0,4.31794]
[1743355323506,10.31676,1802.4,1802.1,1.11012]
[1743355323702,6.30476,1802.4,1802.0,3.2078]
[1743355323912,3.75506,1802.4,1802.2,1.11002]
[1743355324905,1.10996,1802.4,1802.2,1.11002]
[1743355325298,1.10996,1802.4,1802.1,1.11008]
[1743355325503,1.11001,1802.3,1802.1,1.11008]
[1743355326908,1.11006,1802.3,1802.1,1.1101]
[1743355328306,2.5606,1802.2,1802.1,1.1101]
[1743355328913,1.10998,1802.4,1802.2,1.11004]
[1743355329207,3.62706,1802.4,1802.2,1.11003]
[1743355329611,3.6271,1802.3,1802.1,1.11008]
[1743355330607,3.6271,1802.3,1802.2,1.11006]
[1743355330807,3.6271,1802.3,1802.1,1.11008]
[1743355331002,2.5171,1802.3,1802.0,3.2078]
[1743355331208,3.62699,1802.5,1802.3,1.11]
[1743355331617,3.62699,1802.5,1802.3,6.3316]
[1743355333014,3.62699,1802.5,1802.4,1.10994]
[1743355333313,3.62699,1802.5,1802.3,6.33155]
[1743355333513,2.47,1802.4,1802.3,6.33155]
[1743355333920,3.2078,1802.7,1802.3,5.2216]
[1743355334121,6.7876,1802.7,1802.5,1.10985]
[1743355334421,3.5798,1802.7,1802.5,1.10985]
[1743355335332,1.10981,1802.6,1802.5,1.10985]
[1743355335627,2.47,1802.7,1802.5,1.10985]
[1743355335823,3.57978,1802.7,1802.5,1.10985]
[1743355336227,2.5382,1802.6,1802.5,1.10985]
[1743355337734,3.64801,1802.6,1802.4,4.31771]
[1743355338125,1.11011,1802.2,1802.0,4.31797]
[1743355338324,1.11011,1802.2,1802.1,2.4942]
[1743355338725,1.11022,1802.0,1801.8,1.11863402]
[1743355338929,1.11022,1802.0,1801.9,2.4942]
[1743355339122,7.6384,1802.1,1801.9,2.4942]
[1743355339328,3.72038,1802.0,1801.9,2.4942]
[1743355340826,1.11025,1801.9,1801.8,0.00833402]
[1743355341025,3.72045,1801.9,1801.8,0.00833402]
[1743355341432,3.72045,1801.9,1801.8,2.48403402]
[1743355342831,7.72945,1801.9,1801.8,0.00833402]
[1743355343027,1.11043,1801.6,1801.5,0.44488544]
[1743355343232,5.11943,1801.6,1801.5,0.44488544]
[1743355343430,1.11049,1801.5,1801.4,2.4757]
[1743355343735,3.59659,1801.5,1801.4,2.4757]
[1743355344740,2.4861,1801.5,1801.4,2.4757]
[1743355345234,1.11055,1801.4,1801.3,0.00833402]
[1743355345437,2.4861,1801.5,1801.3,0.00833402]
[1743355345631,0.00833402,1801.6,1801.5,1.11049]
[1743355345835,5.11917,1802.1,1801.8,1.11028]
[1743355346036,4.009,1802.1,1801.9,5.0443]
[1743355346231,7.67227,1802.1,1801.9,7.7011]
[1743355346437,1.11018,1802.0,1801.9,7.7011]
[1743355346736,3.66328,1802.0,1801.9,7.7011]
[1743355347440,2.5531,1802.0,1801.9,7.7011]
[1743355347642,5.12746402,1802.1,1801.9,8.81135]
[1743355347835,7.58766402,1802.1,1801.9,8.81135]
[1743355348036,2.46853402,1802.1,1802.0,1.11018]
[1743355348339,0.00833402,1802.1,1802.0,3.70238]
[1743355349937,0.00833402,1802.1,1801.7,4.31816]
[1743355350136,5.11921,1802.0,1801.7,4.31816]
[1743355350343,3.74305,1801.9,1801.8,2.6434]
[1743355352441,1.11031,1801.8,1801.7,3.2078]
[1743355352837,1.11043,1801.6,1801.5,5.2341]
[1743355353038,1.11043,1801.6,1801.5,2.6434]
[1743355353246,9.2003,1801.7,1801.5,2.6434]
[1743355353540,3.75493,1801.6,1801.5,2.6434]
[1743355356248,3.75493,1801.6,1801.3,0.00833402]
[1743355356249,1.11055,1801.4,1801.3,0.00833402]
[1743355356442,1.11055,1801.4,1801.3,2.57953402]
[1743355357846,2.4526,1801.5,1801.3,2.57953402]
[1743355358651,1.11055,1801.4,1801.3,2.57953402]
[1743355360250,2.4526,1801.5,1801.3,2.57953402]
[1743355360849,1.11055,1801.4,1801.3,2.57953402]
[1743355361048,3.56312,1801.5,1801.3,3.69013402]
[1743355361444,1.11052,1801.5,1801.4,2.6611]
[1743355365057,1.11055,1801.4,1801.3,0.00833402]
[1743355365354,1.11084,1801.0,1800.8,1.11091]
[1743355365549,1.11083,1801.0,1800.8,3.73412]
[1743355366154,1.11086,1800.9,1800.8,2.6232]
[1743355366550,1.11085,1801.0,1800.8,2.6232]
[1743355366855,1.11085,1801.0,1800.8,5.2589]
[1743355367059,0.00833402,1801.1,1800.8,5.2589]
[1743355367352,5.12607402,1801.1,1800.9,3.74652]
[1743355367657,0.00833402,1801.1,1801.0,2.6357]
[1743355368358,0.00833402,1801.1,1801.0,3.7465]
[1743355370257,0.00833402,1801.1,1801.0,2.6357]
[1743355371056,0.00833402,1801.1,1801.0,3.7465]
[1743355372360,0.00833402,1801.1,1801.0,2.6357]
[1743355373062,0.00833402,1801.1,1801.0,3.7465]
[1743355376466,1.11907402,1801.1,1801.0,2.6357]
[1743355376663,0.00833402,1801.1,1801.0,3.7465]
[1743355376864,1.11907402,1801.1,1801.0,2.6357]
[1743355377161,1.11083,1801.0,1800.8,3.73412]
[1743355377355,1.11083,1801.0,1800.8,3.7341]
[1743355377555,0.00833402,1801.1,1800.8,2.6232]
[1743355377755,1.11082,1801.0,1800.8,3.7341]
[1743355378264,4.01433402,1801.1,1800.8,2.6232]
[1743355378465,6.53303402,1801.1,1801.0,1.1108]
[1743355378663,7.64378402,1801.1,1800.9,3.68532]
[1743355378963,1.1108,1801.0,1800.9,2.5745]
[1743355379163,3.6295,1801.0,1800.9,2.5745]
[1743355380362,1.11086,1800.9,1800.8,2.6232]
[1743355380667,3.55526,1800.9,1800.8,5.2162]
[1743355381060,3.55526,1800.9,1800.8,2.593]
[1743355381655,2.4444,1800.9,1800.8,2.593]
[1743355381863,3.55526,1800.9,1800.8,2.593]
[1743355387469,1.11092,1800.8,1800.7,2.43243402]
[1743355387671,3.54222,1800.8,1800.7,2.43243402]
[1743355388066,3.54222,1800.8,1800.5,2.4684]
[1743355388067,1.11105,1800.6,1800.5,2.4684]
[1743355388271,1.11105,1800.6,1800.5,2.4439]
[1743355389174,5.20898,1800.6,1800.1,3.2078]
[1743355389469,8.32391,1800.5,1800.4,0.00833402]
[1743355390168,1.11154,1799.8,1799.7,3.2078]
[1743355390968,3.74644,1799.8,1799.7,3.2078]
[1743355391173,1.1116,1799.7,1799.6,5.02153402]
[1743355391371,2.6349,1799.8,1799.6,5.02153402]
[1743355391372,1.11156,1799.8,1799.6,5.02153402]
[1743355391573,1.11156,1799.8,1799.7,2.5339]
[1743355391769,3.74646,1799.8,1799.7,2.5339]
[1743355392074,1.1116,1799.7,1799.6,2.48763402]
[1743355392269,1.1116,1799.7,1799.6,0.00833402]
[1743355392470,4.3194,1799.7,1799.6,0.00833402]
[1743355392972,6.8989,1799.7,1799.6,0.00833402]
[1743355393173,1.11179,1799.4,1799.3,2.5339]
[1743355393373,5.11675,1799.5,1799.3,2.5339]
[1743355393963,7.22113402,1799.9,1799.4,3.2078]
[1743355394270,9.1778,1800.7,1799.8,3.2078]
[1743355394474,1.11117,1800.4,1800.2,1.11128]
[1743355394673,1.11117,1800.4,1800.3,5.1128]
[1743355395077,2.5795,1800.5,1800.3,5.1128]
[1743355395375,0.00833402,1800.6,1800.4,3.56016]
[1743355395677,5.12538402,1800.6,1800.5,2.449]
[1743355397573,4.01433402,1800.6,1800.5,2.449]
[1743355397774,5.12538402,1800.6,1800.5,2.449]
[1743355397968,4.01433402,1800.6,1800.5,2.449]
[1743355398174,0.00833402,1800.6,1800.5,3.56011]
[1743355398378,0.00833402,1800.6,1800.5,2.449]
[1743355398577,3.72158402,1800.6,1800.5,2.449]
[1743355399477,2.61053402,1800.6,1800.5,2.449]
[1743355400477,0.00833402,1800.6,1800.5,3.56011]
[1743355401881,5.11484,1801.0,1800.8,1.11092]
[1743355402376,5.11484,1801.0,1800.9,2.5689]
[1743355402877,1.1108,1801.0,1800.9,2.5689]
[1743355403378,3.6265,1801.0,1800.9,2.5689]
[1743355403567,1.11086,1800.9,1800.8,0.00833402]
[1743355403772,3.62656,1800.9,1800.8,0.00833402]
[1743355403969,6.06656,1800.9,1800.8,0.00833402]
[1743355405070,6.5197,1800.9,1800.8,1.11925402]
[1743355405279,6.5197,1800.9,1800.8,6.19335402]